fUST/lending_fUST_20250624
["ID","MTS","AMOUNT","RATE_DAILY","PERIOD"]
[367333474,1750753859133,-460.0,0.00020547,2]
[367333475,1750753859142,-4596.98,0.00020547,2]
[367333476,1750753859152,-1536.12,0.00020547,2]
[367333477,1750753859161,-460.0,0.00020547,2]
[367333478,1750753859170,-827.88,0.00020547,2]
[367333479,1750753859179,-1383.99,0.00020547,2]
[367333480,1750753859189,-1445.24,0.00020547,2]
[367333481,1750753859198,-585.67973166,0.00020547,2]
[367333482,1750753859207,-460.0,0.00020547,2]
[367333483,1750753859217,-741.52,0.00020547,2]
[367333484,1750753859225,-460.0,0.00020547,2]
[367333485,1750753859239,-3721.17,0.00020547,2]
[367333486,1750753859248,-2744.12,0.00020547,2]
[367333487,1750753859257,-1427.47,0.00020547,2]
[367333488,1750753859266,-1425.02,0.00020547,2]
[367333489,1750753859276,-1214.81,0.00020547,2]
[367333490,1750753859285,-460.0,0.00020547,2]
[367333491,1750753859294,-460.0,0.00020547,2]
[367333492,1750753859303,-460.0,0.00020547,2]
[367333493,1750753859312,-460.0,0.00020547,2]
[367333494,1750753859322,-478.89,0.00020547,2]
[367333495,1750753859332,-399.60244699,0.0002057,2]
[367333496,1750753859341,-500.0,0.00020573,2]
[367333497,1750753859350,-451.63309187,0.00020573,2]
[367333498,1750753859360,-500.0,0.00020573,2]
[367333499,1750753859370,-500.0,0.00020573,2]
[367333500,1750753859379,-500.0,0.00020573,2]
[367333501,1750753859389,-500.81876652,0.00020573,2]
[367333502,1750753859398,-500.99452249,0.00020573,2]
[367333503,1750753859407,-500.0,0.00020573,2]
[367333504,1750753859417,-500.0,0.00020573,2]
[367333505,1750753859426,-500.0,0.00020573,2]
[367333506,1750753859435,-500.0,0.00020573,2]
[367333507,1750753859444,-500.0,0.00020573,2]
[367333508,1750753859453,-500.0,0.00020573,2]
[367333509,1750753859463,-403.99422692,0.00020573,2]
[367333510,1750753859472,-500.0,0.00020573,2]
[367333511,1750753859481,-500.0,0.00020573,2]
[367333512,1750753859490,-500.0,0.00020573,2]
[367333513,1750753859499,-500.0,0.00020573,2]
[367333514,1750753859508,-306.63387142,0.00020573,2]
[367333515,1750753859518,-500.0,0.00020573,2]
[367333516,1750753859527,-500.0,0.00020573,2]
[367333517,1750753859537,-500.0,0.00020573,2]
[367333518,1750753859546,-500.0,0.00020573,2]
[367333519,1750753859556,-500.0,0.00020573,2]
[367333520,1750753859565,-500.0,0.00020573,2]
[367333521,1750753859575,-500.0,0.00020573,2]
[367333522,1750753859584,-600.0,0.00020573,2]
[367333523,1750753859593,-219.48184596,0.00020573,2]
[367333524,1750753859602,-500.0,0.00020573,2]
[367333525,1750753859611,-500.0,0.00020573,2]
[367333526,1750753859621,-500.0,0.00020573,2]
[367333527,1750753859630,-500.0,0.00020573,2]
[367333528,1750753859639,-500.0,0.00020573,2]
[367333529,1750753859648,-500.0,0.00020573,2]
[367333530,1750753859657,-500.0,0.00020573,2]
[367333531,1750753859667,-500.0,0.00020573,2]
[367333532,1750753859675,-500.0,0.00020573,2]
[367333533,1750753859684,-500.88181524,0.00020573,2]
[367333534,1750753859694,-518.5908885,0.00020573,2]
[367333535,1750753859702,-500.0,0.00020573,2]
[367333536,1750753859711,-500.0,0.00020573,2]
[367333537,1750753859720,-500.0,0.00020573,2]
[367333538,1750753859730,-500.0,0.00020573,2]
[367333539,1750753859739,-500.0,0.00020573,2]
[367333540,1750753859749,-500.0,0.00020573,2]
[367333541,1750753859758,-500.0,0.00020573,2]
[367333542,1750753859768,-500.0,0.00020573,2]
[367333543,1750753859777,-500.0,0.00020573,2]
[367333544,1750753859787,-500.0,0.00020573,2]
[367333545,1750753859796,-500.0,0.00020573,2]
[367333546,1750753859805,-500.0,0.00020573,2]
[367333547,1750753859814,-500.0,0.00020573,2]
[367333548,1750753859824,-500.0,0.00020573,2]
[367333549,1750753859832,-500.0,0.00020573,2]
[367333550,1750753859842,-3052.6688741,0.0002059,3]
[367333551,1750753859851,-167.1443725,0.00020597,2]
[367333552,1750753859861,-6750.25,0.000206,2]
[367333553,1750753859870,-82368.32,0.000206,2]
[367333554,1750753859878,-12520.14,0.000206,2]
[367333555,1750753859888,-151.0,0.000206,2]
[367333556,1750753859897,-151.0,0.000206,2]
[367333557,1750753859907,-151.0,0.000206,2]
[367333558,1750753859916,-151.0,0.000206,2]
[367333559,1750753859926,-151.0,0.000206,2]
[367333560,1750753859935,-196.0,0.00020611,2]
[367333561,1750753859944,-196.0,0.00020644,2]
[367333562,1750753859954,-153.0,0.00020658,2]
[367333563,1750753859963,-153.0,0.00020658,2]
[367333564,1750753859972,-153.0,0.00020658,2]
[367333565,1750753859982,-153.0,0.00020658,2]
[367333566,1750753859991,-151.0,0.000207,4]
[367333567,1750753860000,-1875.35,0.0002071,20]
[367333568,1750753860010,-160.0,0.00020762,3]
[367333569,1750753860020,-524.15841286,0.00020762,3]
[367333570,1750753860030,-12556.00642039,0.00020762,3]
[367333571,1750753860039,-846.68469334,0.00020762,3]
[367333572,1750753860049,-213.66798275,0.00020762,3]
[367333573,1750753860061,-3052.6688741,0.00020762,3]
[367333574,1750753860071,-300.0,0.00020813,2]
[367333575,1750753860081,-1114.18597854,0.00020816,2]
[367333576,1750753860090,-2000.0,0.00020816,2]
[367333577,1750753860100,-371.54184984,0.00020816,2]
[367333578,1750753860109,-555.03592152,0.00020816,2]
[367333579,1750753860119,-460.0,0.00020821,2]
[367333580,1750753860128,-460.0,0.00020821,2]
[367333581,1750753860138,-460.0,0.00020821,2]
[367333582,1750753860147,-460.0,0.00020821,2]
[367333583,1750753860156,-460.0,0.00020821,2]
[367333584,1750753860247,-695.39,0.00020821,15]
[367333585,1750753860257,-460.0,0.00020821,2]
[367333586,1750753860267,-597.57,0.00020821,2]
[367333587,1750753860276,-460.0,0.00020821,2]
[367333588,1750753860286,-460.0,0.00020821,2]
[367333589,1750753860295,-460.0,0.00020821,2]
[367333590,1750753860305,-460.0,0.00020821,2]
[367333591,1750753860316,-460.0,0.00020821,2]
[367333592,1750753860325,-460.0,0.00020821,2]
[367333593,1750753860334,-460.0,0.00020821,2]
[367333594,1750753860343,-460.0,0.00020821,2]
[367333595,1750753860353,-897.7,0.00020821,2]
[367333596,1750753860363,-460.0,0.00020821,2]
[367333597,1750753860372,-598.78950426,0.00020821,2]
[367333598,1750753860382,-315.90064037,0.00020821,2]
[367333599,1750753860391,-460.0,0.00020821,2]
[367333600,1750753860400,-460.0,0.00020821,2]
[367333601,1750753860409,-321.25201435,0.00020821,2]
[367333602,1750753860419,-565.56,0.00020821,2]
[367333603,1750753860428,-460.0,0.00020821,2]
[367333604,1750753860437,-460.0,0.00020821,2]
[367333605,1750753860447,-460.0,0.00020821,2]
[367333606,1750753860456,-1570.91,0.00020821,2]
[367333607,1750753860465,-460.0,0.00020821,2]
[367333608,1750753860474,-460.0,0.00020821,2]
[367333609,1750753860484,-460.0,0.00020821,2]
[367333610,1750753860493,-1063.33,0.00020821,2]
[367333611,1750753860503,-460.0,0.00020821,2]
[367333612,1750753860512,-460.0,0.00020821,2]
[367333613,1750753860521,-460.0,0.00020821,2]
[367333614,1750753860530,-325.50850535,0.00020821,2]
[367333615,1750753860540,-460.0,0.00020821,2]
[367333616,1750753860549,-460.0,0.00020821,2]
[367333617,1750753860559,-460.0,0.00020821,2]
[367333618,1750753860568,-460.0,0.00020821,2]
[367333619,1750753860577,-460.0,0.00020821,2]
[367333620,1750753860586,-507.64734966,0.00020821,2]
[367333621,1750753860595,-460.0,0.00020821,2]
[367333622,1750753860605,-460.0,0.00020821,2]
[367333623,1750753860614,-1236.02,0.00020821,2]
[367333624,1750753860623,-460.0,0.00020821,2]
[367333625,1750753860633,-460.0,0.00020821,2]
[367333626,1750753860642,-764.46,0.00020821,2]
[367333627,1750753860651,-505.75,0.00020821,2]
[367333628,1750753860661,-460.0,0.00020821,2]
[367333629,1750753860670,-460.0,0.00020821,2]
[367333630,1750753860679,-460.0,0.00020821,2]
[367333631,1750753860687,-460.0,0.00020821,2]
[367333632,1750753860696,-161.35,0.00020821,2]
[367333633,1750753860706,-460.0,0.00020821,2]
[367333634,1750753860715,-509.71,0.00020821,2]
[367333635,1750753860725,-460.0,0.00020821,2]
[367333636,1750753860735,-460.0,0.00020821,2]
[367333637,1750753860744,-460.0,0.00020821,2]
[367333638,1750753860753,-3596.87,0.00020821,2]
[367333639,1750753860763,-553.59,0.00020821,2]
[367333640,1750753860772,-1102.05,0.00020821,2]
[367333641,1750753860782,-460.0,0.00020821,2]
[367333642,1750753860791,-460.0,0.00020821,2]
[367333643,1750753860800,-460.0,0.00020821,2]
[367333644,1750753860809,-460.0,0.00020821,2]
[367333645,1750753860818,-1669.02,0.00020821,2]
[367333646,1750753860828,-460.22,0.00020821,2]
[367333647,1750753860837,-460.0,0.00020821,2]
[367333648,1750753860846,-460.0,0.00020821,2]
[367333649,1750753860855,-1429.9,0.00020821,2]
[367333650,1750753860864,-4047.25,0.00020821,2]
[367333651,1750753860873,-1393.46,0.00020821,2]
[367333652,1750753860883,-522.37,0.00020821,2]
[367333653,1750753860892,-1153.41,0.00020821,2]
[367333654,1750753860902,-460.0,0.00020821,2]
[367333655,1750753860911,-460.0,0.00020821,2]
[367333656,1750753860920,-460.0,0.00020821,2]
[367333657,1750753860929,-460.0,0.00020821,2]
[367333658,1750753860938,-1245.34,0.00020821,2]
[367333659,1750753860947,-460.0,0.00020821,2]
[367333660,1750753860956,-460.0,0.00020821,2]
[367333661,1750753860965,-1260.54,0.00020821,2]
[367333662,1750753860974,-460.0,0.00020821,2]
[367333663,1750753860984,-460.0,0.00020821,2]
[367333664,1750753860993,-460.0,0.00020821,2]
[367333665,1750753861002,-1307.67,0.00020821,2]
[367333666,1750753861011,-3803.53,0.00020821,2]
[367333667,1750753861020,-632.19,0.00020821,2]
[367333668,1750753861029,-460.0,0.00020821,2]
[367333669,1750753861039,-2444.82,0.00020821,2]
[367333670,1750753861048,-460.0,0.00020821,2]
[367333671,1750753861057,-495.64,0.00020821,2]
[367333672,1750753861067,-4883.92,0.00020821,2]
[367333673,1750753861076,-460.0,0.00020821,2]
[367333674,1750753861086,-460.0,0.00020821,2]
[367333675,1750753861095,-460.0,0.00020821,2]
[367333676,1750753861105,-524.71,0.00020821,2]
[367333677,1750753861114,-1033.7,0.00020821,2]
[367333678,1750753861123,-1169.19,0.00020821,2]
[367333679,1750753861132,-993.21,0.00020821,2]
[367333680,1750753861141,-261.77,0.00020821,2]
[367333681,1750753861151,-460.0,0.00020821,2]
[367333682,1750753861160,-2909.68,0.00020821,2]
[367333683,1750753861169,-460.0,0.00020821,2]
[367333684,1750753861178,-460.0,0.00020821,2]
[367333685,1750753861187,-460.0,0.00020821,2]
[367333686,1750753861196,-970.5,0.00020821,2]
[367333687,1750753861205,-1536.63,0.00020821,2]
[367333688,1750753861214,-559.38,0.00020821,2]
[367333689,1750753861224,-4779.35,0.00020821,2]
[367333690,1750753861234,-460.0,0.00020821,2]
[367333691,1750753861247,-208.62,0.00020821,2]
[367333692,1750753861256,-490.83,0.00020821,2]
[367333693,1750753861265,-352.59023255,0.00020821,2]
[367333694,1750753861275,-3740.04,0.00020821,2]
[367333695,1750753861284,-784.58,0.00020821,2]
[367333696,1750753861293,-460.0,0.00020821,2]
[367333697,1750753861303,-460.0,0.00020821,2]
[367333698,1750753861312,-578.07,0.00020821,2]
[367333699,1750753861323,-460.0,0.00020821,2]
[367333700,1750753861334,-460.0,0.00020821,2]
[367333701,1750753861344,-471.2,0.00020821,2]
[367333702,1750753861353,-735.87,0.00020821,2]
[367333703,1750753861363,-460.0,0.00020821,2]
[367333704,1750753861372,-460.0,0.00020821,2]
[367333705,1750753861381,-1246.9,0.00020821,2]
[367333706,1750753861390,-460.0,0.00020821,2]
[367333707,1750753861400,-917.49,0.00020821,2]
[367333708,1750753861409,-4012.53,0.00020821,2]
[367333709,1750753861418,-460.0,0.00020821,2]
[367333710,1750753861428,-1024.0,0.00020821,2]
[367333711,1750753861439,-460.0,0.00020821,2]
[367333712,1750753861451,-460.0,0.00020821,2]
[367333713,1750753861460,-1810.6,0.00020821,2]
[367333714,1750753861469,-2174.0,0.00020821,2]
[367333715,1750753861478,-460.0,0.00020821,2]
[367333716,1750753861487,-460.0,0.00020821,2]
[367333717,1750753861496,-460.0,0.00020821,2]
[367333718,1750753861505,-3902.37,0.00020821,2]
[367333719,1750753861516,-460.0,0.00020821,2]
[367333720,1750753861526,-9554.89,0.00020821,2]
[367333721,1750753861535,-460.0,0.00020821,2]
[367333722,1750753861545,-470.38,0.00020821,2]
[367333723,1750753861554,-4596.98,0.00020821,2]
[367333724,1750753861563,-1536.12,0.00020821,2]
[367333725,1750753861572,-460.0,0.00020821,2]
[367333726,1750753861582,-827.88,0.00020821,2]
[367333727,1750753861590,-1383.99,0.00020821,2]
[367333728,1750753861599,-1445.24,0.00020821,2]
[367333729,1750753861608,-483.58740342,0.00020821,2]
[367333730,1750753861694,-1282.97,0.00020821,2]
[367333731,1750753861704,-741.52,0.00020821,2]
[367333732,1750753861713,-460.0,0.00020821,2]
[367333733,1750753861723,-3721.17,0.00020821,2]
[367333734,1750753861732,-2744.12,0.00020821,2]
[367333735,1750753861742,-1427.47,0.00020821,2]
[367333736,1750753861752,-1425.02,0.00020821,2]
[367333737,1750753861761,-1214.81,0.00020821,2]
[367333738,1750753861770,-480.93482053,0.00020821,2]
[367333739,1750753861780,-460.0,0.00020821,2]
[367333740,1750753861789,-460.0,0.00020821,2]
[367333741,1750753861800,-480.03,0.00020821,2]
[367333742,1750753861809,-420.0,0.00020822,2]
[367333743,1750753861819,-420.0,0.00020822,2]
[367333744,1750753861828,-420.0,0.00020822,2]
[367333745,1750753861837,-420.0,0.00020823,2]
[367333746,1750753861846,-1071.451,0.00020834,2]
[367333747,1750753861855,-196.0,0.00020836,2]
[367333748,1750753861864,-1117.83311831,0.00020868,2]
[367333749,1750753861874,-1500.0,0.00020868,2]
[367333750,1750753861883,-526.48524204,0.00020868,2]
[367333751,1750753861892,-1500.0,0.00020868,2]
[367333752,1750753861901,-1500.0,0.00020868,2]
[367333753,1750753861911,-1500.0,0.00020868,2]
[367333754,1750753861920,-1500.0,0.00020868,2]
[367333755,1750753861930,-1500.0,0.00020868,2]
[367333756,1750753861940,-1008.11003669,0.00020868,2]
[367333757,1750753861949,-1500.0,0.00020868,2]
[367333758,1750753861959,-1500.0,0.00020868,2]
[367333759,1750753861968,-1500.0,0.00020868,2]
[367333760,1750753861978,-1500.0,0.00020868,2]
[367333761,1750753861987,-399.60244699,0.00020897,2]
[367333762,1750753861996,-151.0,0.000209,4]
[367333763,1750753862006,-196.0,0.00020908,2]
[367333764,1750753862015,-1680.0,0.00020923,2]
[367333765,1750753862024,-3052.6688741,0.00020934,4]
[367333766,1750753862033,-160.0,0.00021,2]
[367333767,1750753862042,-1500.0,0.00021068,2]
[367333768,1750753862051,-1500.0,0.00021068,2]
[367333769,1750753862061,-523.61903905,0.00021068,2]
[367333770,1750753862070,-1500.0,0.00021068,2]
[367333771,1750753862080,-1500.0,0.00021068,2]
[367333772,1750753862089,-831.29355679,0.00021078,2]
[367333773,1750753862098,-211.51,0.00021095,2]
[367333774,1750753862107,-592.73,0.00021095,2]
[367333775,1750753862117,-460.0,0.00021095,2]
[367333776,1750753862128,-460.0,0.00021095,2]
[367333777,1750753862139,-460.0,0.00021095,2]
[367333778,1750753862148,-695.39,0.00021095,16]
[367333779,1750753862157,-460.0,0.00021095,2]
[367333780,1750753862167,-597.57,0.00021095,2]
[367333781,1750753862175,-460.0,0.00021095,2]
[367333782,1750753862185,-596.07,0.00021095,2]
[367333783,1750753862194,-460.0,0.00021095,2]
[367333784,1750753862203,-460.0,0.00021095,2]
[367333785,1750753862213,-460.0,0.00021095,2]
[367333786,1750753862222,-471.51896537,0.00021095,2]
[367333787,1750753862232,-460.0,0.00021095,2]
[367333788,1750753862243,-897.7,0.00021095,2]
[367333789,1750753862252,-228.21,0.00021095,2]
[367333790,1750753862262,-460.0,0.00021095,2]
[367333791,1750753862271,-405.00700724,0.00021095,2]
[367333792,1750753862281,-565.56,0.00021095,2]
[367333793,1750753862290,-460.0,0.00021095,2]
[367333794,1750753862299,-460.0,0.00021095,2]
[367333795,1750753862308,-460.0,0.00021095,2]
[367333796,1750753862318,-1570.91,0.00021095,2]
[367333797,1750753862328,-460.0,0.00021095,2]
[367333798,1750753862337,-460.0,0.00021095,2]
[367333799,1750753862347,-460.0,0.00021095,2]
[367333800,1750753862356,-1063.33,0.00021095,2]
[367333801,1750753862365,-460.0,0.00021095,2]
[367333802,1750753862374,-460.0,0.00021095,2]
[367333803,1750753862384,-460.0,0.00021095,2]
[367333804,1750753862393,-460.0,0.00021095,2]
[367333805,1750753862402,-460.0,0.00021095,2]
[367333806,1750753862410,-336.9801576,0.00021095,2]
[367333807,1750753862420,-460.0,0.00021095,2]
[367333808,1750753862429,-460.0,0.00021095,2]
[367333809,1750753862438,-460.0,0.00021095,2]
[367333810,1750753862447,-474.36753628,0.00021095,2]
[367333811,1750753862456,-1236.02,0.00021095,2]
[367333812,1750753862465,-460.0,0.00021095,2]
[367333813,1750753862475,-460.0,0.00021095,2]
[367333814,1750753862485,-764.46,0.00021095,2]
[367333815,1750753862494,-505.75,0.00021095,2]
[367333816,1750753862504,-460.0,0.00021095,2]
[367333817,1750753862513,-460.0,0.00021095,2]
[367333818,1750753862523,-152.48349207,0.00021095,2]
[367333819,1750753862533,-460.0,0.00021095,2]
[367333820,1750753862544,-460.0,0.00021095,2]
[367333821,1750753862554,-436.68493286,0.00021095,2]
[367333822,1750753862564,-460.0,0.00021095,2]
[367333823,1750753862573,-460.0,0.00021095,2]
[367333824,1750753862583,-3596.87,0.00021095,2]
[367333825,1750753862592,-553.59,0.00021095,2]
[367333826,1750753862601,-1102.05,0.00021095,2]
[367333827,1750753862611,-460.0,0.00021095,2]
[367333828,1750753862620,-460.0,0.00021095,2]
[367333829,1750753862629,-460.0,0.00021095,2]
[367333830,1750753862639,-460.0,0.00021095,2]
[367333831,1750753862649,-1669.02,0.00021095,2]
[367333832,1750753862658,-460.22,0.00021095,2]
[367333833,1750753862667,-460.0,0.00021095,2]
[367333834,1750753862676,-460.0,0.00021095,2]
[367333835,1750753862686,-1429.9,0.00021095,2]
[367333836,1750753862695,-4047.25,0.00021095,2]
[367333837,1750753862705,-1393.46,0.00021095,2]
[367333838,1750753862714,-1153.41,0.00021095,2]
[367333839,1750753862723,-460.0,0.00021095,2]
[367333840,1750753862732,-460.0,0.00021095,2]
[367333841,1750753862742,-460.0,0.00021095,2]
[367333842,1750753862752,-460.0,0.00021095,2]
[367333843,1750753862761,-1245.34,0.00021095,2]
[367333844,1750753862771,-460.0,0.00021095,2]
[367333845,1750753862780,-460.0,0.00021095,2]
[367333846,1750753862790,-1260.54,0.00021095,2]
[367333847,1750753862799,-460.0,0.00021095,2]
[367333848,1750753862809,-460.0,0.00021095,2]
[367333849,1750753862818,-460.0,0.00021095,2]
[367333850,1750753862828,-1307.67,0.00021095,2]
[367333851,1750753862837,-3803.53,0.00021095,2]
[367333852,1750753862846,-632.19,0.00021095,2]
[367333853,1750753862855,-460.0,0.00021095,2]
[367333854,1750753862865,-2444.82,0.00021095,2]
[367333855,1750753862874,-460.0,0.00021095,2]
[367333856,1750753862883,-495.64,0.00021095,2]
[367333857,1750753862892,-4883.92,0.00021095,2]
[367333858,1750753862901,-168.0,0.00021095,2]
[367333859,1750753862911,-460.0,0.00021095,2]
[367333860,1750753862921,-460.0,0.00021095,2]
[367333861,1750753862930,-524.71,0.00021095,2]
[367333862,1750753862940,-1169.19,0.00021095,2]
[367333863,1750753862949,-1033.7,0.00021095,2]
[367333864,1750753862958,-993.21,0.00021095,2]
[367333865,1750753863044,-460.0,0.00021095,2]
[367333866,1750753863055,-2909.68,0.00021095,2]
[367333867,1750753863065,-460.0,0.00021095,2]
[367333868,1750753863075,-460.0,0.00021095,2]
[367333869,1750753863084,-460.0,0.00021095,2]
[367333870,1750753863094,-970.5,0.00021095,2]
[367333871,1750753863105,-1536.63,0.00021095,2]
[367333872,1750753863115,-559.38,0.00021095,2]
[367333873,1750753863124,-4779.35,0.00021095,2]
[367333874,1750753863135,-460.0,0.00021095,2]
[367333875,1750753863144,-490.83,0.00021095,2]
[367333876,1750753863155,-3740.04,0.00021095,2]
[367333877,1750753863164,-784.58,0.00021095,2]
[367333878,1750753863174,-460.0,0.00021095,2]
[367333879,1750753863184,-460.0,0.00021095,2]
[367333880,1750753863193,-578.07,0.00021095,2]
[367333881,1750753863203,-460.0,0.00021095,2]
[367333882,1750753863213,-460.0,0.00021095,2]
[367333883,1750753863224,-471.2,0.00021095,2]
[367333884,1750753863235,-735.87,0.00021095,2]
[367333885,1750753863247,-460.0,0.00021095,2]
[367333886,1750753863256,-460.0,0.00021095,2]
[367333887,1750753863266,-1246.9,0.00021095,2]
[367333888,1750753863277,-460.0,0.00021095,2]
[367333889,1750753863286,-917.49,0.00021095,2]
[367333890,1750753863296,-4012.53,0.00021095,2]
[367333891,1750753863306,-460.0,0.00021095,2]
[367333892,1750753863317,-1024.0,0.00021095,2]
[367333893,1750753863327,-460.0,0.00021095,2]
[367333894,1750753863336,-460.0,0.00021095,2]
[367333895,1750753863346,-1810.6,0.00021095,2]
[367333896,1750753863354,-2174.0,0.00021095,2]
[367333897,1750753863364,-460.0,0.00021095,2]
[367333898,1750753863373,-460.0,0.00021095,2]
[367333899,1750753863383,-460.0,0.00021095,2]
[367333900,1750753863392,-3902.37,0.00021095,2]
[367333901,1750753863402,-594.48,0.00021095,2]
[367333902,1750753863411,-9554.89,0.00021095,2]
[367333903,1750753863420,-460.0,0.00021095,2]
[367333904,1750753863430,-470.38,0.00021095,2]
[367333905,1750753863440,-4596.98,0.00021095,2]
[367333906,1750753863449,-1536.12,0.00021095,2]
[367333907,1750753863460,-609.27327585,0.00021095,2]
[367333908,1750753863470,-827.88,0.00021095,2]
[367333909,1750753863479,-1383.99,0.00021095,2]
[367333910,1750753863489,-1445.24,0.00021095,2]
[367333911,1750753863500,-1282.97,0.00021095,2]
[367333912,1750753863510,-741.52,0.00021095,2]
[367333913,1750753863519,-460.0,0.00021095,2]
[367333914,1750753863530,-3721.17,0.00021095,2]
[367333915,1750753863539,-2744.12,0.00021095,2]
[367333916,1750753863549,-1427.47,0.00021095,2]
[367333917,1750753863559,-1425.02,0.00021095,2]
[367333918,1750753863568,-1214.81,0.00021095,2]
[367333919,1750753863578,-460.0,0.00021095,2]
[367333920,1750753863588,-460.0,0.00021095,2]
[367333921,1750753863598,-8596.68652395,0.00021095,2]
[367333922,1750753863608,-3052.6688741,0.00021107,4]
[367333923,1750753863618,-600.0,0.00021111,2]
[367333924,1750753863628,-187.5849628,0.00021116,5]
[367333925,1750753863638,-1000.0,0.00021121,2]
[367333926,1750753863649,-1000.0,0.00021121,2]
[367333927,1750753863658,-1000.0,0.00021121,2]
[367333928,1750753863667,-1000.0,0.00021121,2]
[367333929,1750753863677,-452.1624179,0.00021121,2]
[367333930,1750753863686,-1000.0,0.00021121,2]
[367333931,1750753863695,-1000.0,0.00021121,2]
[367333932,1750753863705,-1000.0,0.00021121,2]
[367333933,1750753863715,-1000.0,0.00021121,2]
[367333934,1750753863725,-927.9416403,0.00021121,2]
[367333935,1750753863735,-1000.0,0.00021121,2]
[367333936,1750753863745,-1000.0,0.00021121,2]
[367333937,1750753863754,-1000.0,0.00021121,2]
[367333938,1750753863764,-1000.0,0.00021121,2]
[367333939,1750753863774,-1000.0,0.00021121,2]
[367333940,1750753863783,-1000.0,0.00021121,2]
[367333941,1750753863793,-1000.0,0.00021121,2]
[367333942,1750753863803,-200.70594982,0.00021121,2]
[367333943,1750753863812,-1000.0,0.00021121,2]
[367333944,1750753863822,-1200.0,0.00021121,2]
[367333945,1750753863832,-1000.0,0.00021121,2]
[367333946,1750753863842,-1000.0,0.00021121,2]
[367333947,1750753863851,-506.97770535,0.00021121,2]
[367333948,1750753863861,-500.42319265,0.00021121,2]
[367333949,1750753863871,-1000.0,0.00021121,2]
[367333950,1750753863881,-1000.0,0.00021121,2]
[367333951,1750753863891,-503.33543142,0.00021121,2]
[367333952,1750753863901,-1000.0,0.00021121,2]
[367333953,1750753863910,-1000.0,0.00021121,2]
[367333954,1750753863920,-1000.0,0.00021121,2]
[367333955,1750753863930,-1000.0,0.00021121,2]
[367333956,1750753863940,-399.70828758,0.00021121,2]
[367333957,1750753863949,-880.42555642,0.00021121,2]
[367333958,1750753863960,-1000.0,0.00021121,2]
[367333959,1750753863969,-1000.0,0.00021121,2]
[367333960,1750753863979,-1000.0,0.00021121,2]
[367333961,1750753863989,-1000.0,0.00021121,2]
[367333962,1750753863999,-1000.0,0.00021121,2]
[367333963,1750753864009,-1000.0,0.00021121,2]
[367333964,1750753864019,-1000.0,0.00021121,2]
[367333965,1750753864029,-1000.0,0.00021121,2]
[367333966,1750753864039,-1000.0,0.00021121,2]
[367333967,1750753864048,-1000.0,0.00021121,2]
[367333968,1750753864059,-399.60244699,0.00021167,2]
[367333969,1750753864070,-151.0,0.000212,4]
[367333970,1750753864081,-4000.0,0.0002125,4]
[367333971,1750753864091,-2048.59,0.00021255,2]
[367333972,1750753864101,-3052.6688741,0.00021279,5]
[367333973,1750753864110,-600.0,0.00021331,2]